lending/lending_fUSD_20240509
["ID","MTS","AMOUNT","RATE_DAILY","PERIOD"]
[326733191,1715290251746,-500.0,0.00041095,34]
[326733192,1715290251755,-500.0,0.00041095,30]
[326733193,1715290251764,-500.0,0.00041095,35]
[326733194,1715290251773,-500.0,0.00041095,36]
[326733195,1715290251782,-500.0,0.00041095,37]
[326733196,1715290251791,-500.0,0.00041095,38]
[326733197,1715290251801,-500.0,0.00041095,39]
[326733198,1715290251810,-568.49,0.00041095,30]
[326733199,1715290251821,-500.0,0.00041095,40]
[326733200,1715290251830,-500.0,0.00041095,30]
[326733201,1715290251843,-500.0,0.00041095,30]
[326733202,1715290251852,-500.0,0.00041095,30]
[326733203,1715290251862,-500.0,0.00041095,30]
[326733204,1715290251871,-500.0,0.00041095,30]
[326733205,1715290251881,-1110.63,0.00041095,30]
[326733206,1715290251891,-500.0,0.00041095,30]
[326733207,1715290251900,-500.0,0.00041095,30]
[326733208,1715290251909,-500.0,0.00041095,30]
[326733209,1715290251920,-1072.7,0.00041095,30]
[326733210,1715290251930,-500.0,0.00041095,30]
[326733211,1715290251939,-500.0,0.00041095,30]
[326733212,1715290251948,-500.0,0.00041095,30]
[326733213,1715290251958,-1017.16,0.00041095,30]
[326733214,1715290251968,-500.0,0.00041095,30]
[326733215,1715290251978,-500.0,0.00041095,30]
[326733216,1715290251987,-306.48417887,0.00041095,30]
[326733217,1715290251996,-500.0,0.00041095,30]
[326733218,1715290252006,-1413.01,0.00041095,30]
[326733219,1715290252015,-500.0,0.00041095,30]
[326733220,1715290252024,-500.0,0.00041095,30]
[326733221,1715290252034,-500.0,0.00041095,30]
[326733222,1715290252044,-718.43,0.00041095,30]
[326733223,1715290252053,-1564.4,0.00041095,30]
[326733224,1715290252062,-500.0,0.00041095,30]
[326733225,1715290252072,-500.0,0.00041095,30]
[326733226,1715290252082,-640.92,0.00041095,30]
[326733227,1715290252091,-555.82,0.00041095,30]
[326733228,1715290252101,-1090.36,0.00041095,30]
[326733229,1715290252110,-500.0,0.00041095,30]
[326733230,1715290252119,-523.16127176,0.00041095,30]
[326733231,1715290252129,-500.0,0.00041095,30]
[326733232,1715290252138,-500.0,0.00041095,30]
[326733233,1715290252147,-500.0,0.00041095,30]
[326733234,1715290252156,-769.35,0.00041095,30]
[326733235,1715290252165,-562.98,0.00041095,30]
[326733236,1715290252174,-500.0,0.00041095,30]
[326733237,1715290252183,-500.0,0.00041095,30]
[326733238,1715290252192,-500.0,0.00041095,30]
[326733239,1715290252201,-500.0,0.00041095,30]
[326733240,1715290252371,-500.0,0.00041095,30]
[326733241,1715290252381,-1579.96,0.00041095,30]
[326733242,1715290252390,-1118.27,0.00041095,30]
[326733243,1715290252399,-500.0,0.00041095,30]
[326733244,1715290252408,-500.0,0.00041095,30]
[326733245,1715290252417,-1773.87,0.00041095,30]
[326733246,1715290252426,-500.0,0.00041095,30]
[326733247,1715290252435,-1444.09,0.00041095,30]
[326733248,1715290252445,-837.88,0.00041095,30]
[326733249,1715290252454,-500.0,0.00041095,30]
[326733250,1715290252463,-500.0,0.00041095,30]
[326733251,1715290252472,-500.0,0.00041095,30]
[326733252,1715290252482,-500.0,0.00041095,30]
[326733253,1715290252491,-500.0,0.00041095,30]
[326733254,1715290252501,-500.0,0.00041095,30]
[326733255,1715290252510,-645.23,0.00041095,30]
[326733256,1715290252519,-500.0,0.00041095,30]
[326733257,1715290252529,-500.0,0.00041095,30]
[326733258,1715290252538,-500.0,0.00041095,30]
[326733259,1715290252547,-500.0,0.00041095,30]
[326733260,1715290252556,-500.0,0.00041095,30]
[326733261,1715290252565,-1111.73,0.00041095,30]
[326733262,1715290252575,-500.0,0.00041095,30]
[326733263,1715290252584,-761.26,0.00041095,30]
[326733264,1715290252594,-500.0,0.00041095,30]
[326733265,1715290252603,-1000.0,0.00041095,2]
[326733266,1715290252612,-500.0,0.00041095,30]
[326733267,1715290252622,-863.41,0.00041095,30]
[326733268,1715290252631,-590.71,0.00041095,30]
[326733269,1715290252640,-500.0,0.00041095,30]
[326733270,1715290252650,-500.0,0.00041095,30]
[326733271,1715290252659,-500.0,0.00041095,30]
[326733272,1715290252667,-500.0,0.00041095,30]
[326733273,1715290252676,-1966.38,0.00041095,30]
[326733274,1715290252686,-500.0,0.00041095,30]
[326733275,1715290252695,-556.85947269,0.00041095,30]
[326733276,1715290252704,-500.0,0.00041095,30]
[326733277,1715290252713,-686.29,0.00041095,30]
[326733278,1715290252722,-500.0,0.00041095,30]
[326733279,1715290252733,-505.8887582,0.00041095,30]
[326733280,1715290252742,-500.0,0.00041095,30]
[326733281,1715290252752,-500.0,0.00041095,30]
[326733282,1715290252761,-1459.05,0.00041095,30]
[326733283,1715290252770,-3585.9,0.00041095,30]
[326733284,1715290252779,-500.0,0.00041095,30]
[326733285,1715290252788,-1662.29,0.00041095,30]
[326733286,1715290252798,-500.0,0.00041095,30]
[326733287,1715290252806,-500.0,0.00041095,30]
[326733288,1715290252816,-500.0,0.00041095,30]
[326733289,1715290252825,-151.612545,0.00041095,14]
[326733290,1715290252837,-500.0,0.00041095,30]
[326733291,1715290252847,-500.0,0.00041095,30]
[326733292,1715290252856,-500.0,0.00041095,30]
[326733293,1715290252865,-500.0,0.00041095,30]
[326733294,1715290252874,-516.66752226,0.00041095,30]
[326733295,1715290252885,-500.0,0.00041095,30]
[326733296,1715290252894,-500.0,0.00041095,30]
[326733297,1715290252903,-500.0,0.00041095,30]
[326733298,1715290252913,-500.0,0.00041095,30]
[326733299,1715290252923,-159.233217,0.00041095,14]
[326733300,1715290252932,-500.0,0.00041095,30]
[326733301,1715290252941,-500.0,0.00041095,30]
[326733302,1715290252950,-500.0,0.00041095,30]
[326733303,1715290252959,-500.0,0.00041095,30]
[326733304,1715290252968,-500.0,0.00041095,30]
[326733305,1715290252979,-500.0,0.00041095,30]
[326733306,1715290252987,-500.0,0.00041095,2]
[326733307,1715290252996,-500.0,0.00041095,30]
[326733308,1715290253006,-1410.0,0.00041095,30]
[326733309,1715290253015,-500.0,0.00041095,30]
[326733310,1715290253025,-500.0,0.00041095,30]
[326733311,1715290253034,-500.0,0.00041095,30]
[326733312,1715290253044,-500.0,0.00041095,30]
[326733313,1715290253053,-842.87,0.00041095,30]
[326733314,1715290253062,-151.0,0.00041095,14]
[326733315,1715290253072,-500.0,0.00041095,30]
[326733316,1715290253081,-500.0,0.00041095,30]
[326733317,1715290253090,-1288.43,0.00041095,30]
[326733318,1715290253099,-500.0,0.00041095,30]
[326733319,1715290253108,-500.0,0.00041095,30]
[326733320,1715290253117,-500.0,0.00041095,30]
[326733321,1715290253126,-2145.77,0.00041095,30]
[326733322,1715290253135,-500.0,0.00041095,30]
[326733323,1715290253144,-500.0,0.00041095,30]
[326733324,1715290253153,-500.69490622,0.00041095,30]
[326733325,1715290253162,-500.0,0.00041095,30]
[326733326,1715290253170,-680.58,0.00041095,30]
[326733327,1715290253180,-500.0,0.00041095,30]
[326733328,1715290253189,-506.03869339,0.00041095,30]
[326733329,1715290253198,-502.81321546,0.00041095,30]
[326733330,1715290253207,-2308.93,0.00041095,30]
[326733331,1715290253216,-500.0,0.00041095,30]
[326733332,1715290253225,-500.0,0.00041095,30]
[326733333,1715290253235,-500.0,0.00041095,30]
[326733334,1715290253244,-500.0,0.00041095,30]
[326733335,1715290253253,-500.0,0.00041095,30]
[326733336,1715290253262,-500.0,0.00041095,30]
[326733337,1715290253271,-500.0,0.00041095,30]
[326733338,1715290253281,-500.0,0.00041095,30]
[326733339,1715290253290,-500.0,0.00041095,30]
[326733340,1715290253299,-570.01,0.00041095,30]
[326733341,1715290253308,-500.0,0.00041095,30]
[326733342,1715290253317,-2218.23,0.00041095,30]
[326733343,1715290253326,-500.0,0.00041095,30]
[326733344,1715290253335,-710.53,0.00041095,30]
[326733345,1715290253344,-500.0,0.00041095,30]
[326733346,1715290253354,-500.0,0.00041095,30]
[326733347,1715290253363,-500.0,0.00041095,30]
[326733348,1715290253371,-500.0,0.00041095,30]
[326733349,1715290253380,-500.0,0.00041095,30]
[326733350,1715290253389,-500.0,0.00041095,30]
[326733351,1715290253398,-500.0,0.00041095,30]
[326733352,1715290253407,-1250.78,0.00041095,30]
[326733353,1715290253417,-500.0,0.00041095,30]
[326733354,1715290253426,-524.5,0.00041095,30]
[326733355,1715290253435,-500.0,0.00041095,30]
[326733356,1715290253444,-500.0,0.00041095,30]
[326733357,1715290253453,-500.0,0.00041095,31]
[326733358,1715290253463,-500.0,0.00041095,32]
[326733359,1715290253472,-500.0,0.00041095,30]
[326733360,1715290253482,-500.0,0.00041095,33]
[326733361,1715290253491,-500.0,0.00041095,34]
[326733362,1715290253500,-163.55144931,0.00041095,30]
[326733363,1715290253509,-500.0,0.00041095,30]
[326733364,1715290253519,-500.0,0.00041095,35]
[326733365,1715290253529,-505.71051451,0.00041095,30]
[326733366,1715290253538,-500.0,0.00041095,36]
[326733367,1715290253547,-500.0,0.00041095,30]
[326733368,1715290253556,-1214.5,0.00041095,30]
[326733369,1715290253565,-500.0,0.00041095,30]
[326733370,1715290253574,-748.28,0.00041095,30]
[326733371,1715290253583,-1674.55,0.00041095,30]
[326733372,1715290253592,-1106.96,0.00041095,30]
[326733373,1715290253601,-3181.87,0.00041095,30]
[326733374,1715290253610,-630.26,0.00041095,30]
[326733375,1715290253619,-500.0,0.00041095,30]
[326733376,1715290253628,-151.0,0.00041095,14]
[326733377,1715290253637,-500.0,0.00041095,30]
[326733378,1715290253646,-500.0,0.00041095,30]
[326733379,1715290253655,-695.55,0.00041095,30]
[326733380,1715290253664,-151.05715238,0.00041095,30]
[326733381,1715290253673,-500.0,0.00041095,30]
[326733382,1715290253682,-467.93959678,0.00041095,30]
[326733383,1715290253691,-500.0,0.00041095,30]
[326733384,1715290253700,-496.63191649,0.00041095,37]
[326733385,1715290253709,-1411.96,0.00041095,30]
[326733386,1715290253719,-500.0,0.00041095,30]
[326733387,1715290253730,-500.0,0.00041095,30]
[326733388,1715290253740,-1329.71,0.00041095,30]
[326733389,1715290253750,-500.0,0.00041095,30]
[326733390,1715290253760,-305.2335685,0.00041095,30]
[326733391,1715290253769,-500.0,0.00041095,30]
[326733392,1715290253779,-500.0,0.00041095,30]
[326733393,1715290253789,-155.14972805,0.00041095,30]
[326733394,1715290253798,-500.0,0.00041095,30]
[326733395,1715290253807,-500.0,0.00041095,30]
[326733396,1715290253817,-501.77139113,0.00041095,30]
[326733397,1715290253826,-500.0,0.00041095,30]
[326733398,1715290253840,-500.0,0.00041095,30]
[326733399,1715290253849,-500.0,0.00041095,30]
[326733400,1715290253859,-500.0,0.00041095,30]
[326733401,1715290253869,-500.0,0.00041095,30]
[326733402,1715290253880,-589.21,0.00041095,30]
[326733403,1715290253890,-500.0,0.00041095,30]
[326733404,1715290253899,-500.0,0.00041095,30]
[326733405,1715290253909,-500.0,0.00041095,30]
[326733406,1715290253921,-500.0,0.00041095,2]
[326733407,1715290253931,-500.0,0.00041095,30]
[326733408,1715290253941,-1580.25,0.00041095,30]
[326733409,1715290253950,-500.0,0.00041095,30]
[326733410,1715290253960,-1261.42,0.00041095,30]
[326733411,1715290253969,-500.0,0.00041095,30]
[326733412,1715290253979,-500.0,0.00041095,30]
[326733413,1715290253988,-500.80729896,0.00041095,30]
[326733414,1715290253998,-500.0,0.00041095,30]
[326733415,1715290254008,-500.0,0.00041095,30]
[326733416,1715290254018,-982.84,0.00041095,30]
[326733417,1715290254028,-505.20296445,0.00041095,30]
[326733418,1715290254038,-990.55,0.00041095,30]
[326733419,1715290254048,-500.0,0.00041095,30]
[326733420,1715290254058,-605.50300205,0.00041095,30]
[326733421,1715290254068,-503.04123482,0.00041095,30]
[326733422,1715290254083,-500.0,0.00041095,30]
[326733423,1715290254094,-500.0,0.00041095,30]
[326733424,1715290254104,-2734.91,0.00041095,90]
[326733425,1715290254114,-500.0,0.00041095,30]
[326733426,1715290254124,-500.0,0.00041095,30]
[326733427,1715290254134,-500.0,0.00041095,30]
[326733428,1715290254145,-500.0,0.00041095,30]
[326733429,1715290254156,-3000.0,0.00041095,30]
[326733430,1715290254166,-754.97,0.00041095,30]
[326733431,1715290254176,-500.0,0.00041095,30]
[326733432,1715290254185,-500.0,0.00041095,30]
[326733433,1715290254195,-1163.62,0.00041095,30]
[326733434,1715290254204,-500.0,0.00041095,30]
[326733435,1715290254213,-500.0,0.00041095,30]
[326733436,1715290254224,-1290.04,0.00041095,30]
[326733437,1715290254234,-515.25167639,0.00041095,30]
[326733438,1715290254243,-500.0,0.00041095,30]
[326733439,1715290254252,-500.0,0.00041095,30]
[326733440,1715290254262,-500.0,0.00041095,30]
[326733441,1715290254271,-500.0,0.00041095,30]
[326733442,1715290254280,-500.0,0.00041095,30]
[326733443,1715290254302,-686.59,0.00041095,30]
[326733444,1715290254312,-502.98194686,0.00041095,30]
[326733445,1715290254322,-1168.24,0.00041095,30]
[326733446,1715290254331,-509.66101193,0.00041095,30]
[326733447,1715290254341,-1010.71,0.00041095,30]
[326733448,1715290254351,-2519.14,0.00041095,30]
[326733449,1715290254360,-506.44330945,0.00041095,30]
[326733450,1715290254371,-500.0,0.00041095,30]
[326733451,1715290254380,-500.0,0.00041095,30]
[326733452,1715290254390,-500.0,0.00041095,30]
[326733453,1715290254400,-500.0,0.00041095,30]
[326733454,1715290254409,-1693.45,0.00041095,30]
[326733455,1715290254419,-500.0,0.00041095,30]
[326733456,1715290254429,-500.0,0.00041095,30]
[326733457,1715290254438,-500.0,0.00041095,30]
[326733458,1715290254448,-500.0,0.00041095,30]
[326733459,1715290254458,-411.40382721,0.00041095,30]
[326733460,1715290254467,-500.0,0.00041095,30]
[326733461,1715290254477,-500.0,0.00041095,30]
[326733462,1715290254486,-1028.53,0.00041095,30]
[326733463,1715290254495,-500.0,0.00041095,30]
[326733464,1715290254505,-500.0,0.00041095,30]
[326733465,1715290254514,-500.0,0.00041095,30]
[326733466,1715290254524,-500.0,0.00041095,30]
[326733467,1715290254534,-547.64,0.00041095,30]
[326733468,1715290254544,-547.64,0.00041095,31]
[326733469,1715290254553,-500.0,0.00041095,30]
[326733470,1715290254562,-547.64,0.00041095,32]
[326733471,1715290254572,-500.0,0.00041095,30]
[326733472,1715290254582,-547.64,0.00041095,33]
[326733473,1715290254592,-547.64,0.00041095,34]
[326733474,1715290254602,-723.96,0.00041095,30]
[326733475,1715290254612,-547.64,0.00041095,35]
[326733476,1715290254622,-547.64,0.00041095,36]
[326733477,1715290254632,-547.64,0.00041095,37]
[326733478,1715290254642,-547.64,0.00041095,38]
[326733479,1715290254652,-547.64,0.00041095,39]
[326733480,1715290254662,-554.43,0.00041095,30]
[326733481,1715290254672,-547.64,0.00041095,40]
[326733482,1715290254682,-547.64,0.00041095,41]
[326733483,1715290254692,-500.0,0.00041095,30]
[326733484,1715290254702,-547.64,0.00041095,42]
[326733485,1715290254711,-750.0,0.00041095,30]
[326733486,1715290254721,-547.64,0.00041095,43]
[326733487,1715290254732,-547.64,0.00041095,44]
[326733488,1715290254742,-547.64,0.00041095,45]
[326733489,1715290254751,-547.64,0.00041095,46]
[326733490,1715290254762,-500.0,0.00041095,30]
[326733491,1715290254772,-547.64,0.00041095,47]
[326733492,1715290254782,-547.64,0.00041095,48]
[326733493,1715290254792,-500.0,0.00041095,30]
[326733494,1715290254801,-1305.3,0.00041095,30]
[326733495,1715290254811,-2114.59,0.00041095,30]
[326733496,1715290254820,-455.71271532,0.00041095,30]
[326733497,1715290254830,-500.0,0.00041095,30]
[326733498,1715290254844,-500.0,0.00041095,30]
[326733499,1715290254852,-634.12813521,0.00041095,30]
[326733500,1715290254861,-500.0,0.00041095,30]
[326733501,1715290254870,-500.0,0.00041095,30]
[326733502,1715290254879,-500.0,0.00041095,30]
[326733503,1715290254888,-500.0,0.00041095,30]
[326733504,1715290254897,-500.0,0.00041095,30]
[326733505,1715290254912,-500.0,0.00041095,30]
[326733506,1715290254923,-500.0,0.00041095,30]
[326733507,1715290255212,-622.13,0.00041095,30]
[326733508,1715290255223,-506.11106986,0.00041095,30]
[326733509,1715290255233,-500.0,0.00041095,30]
[326733510,1715290255243,-500.0,0.00041095,30]
[326733511,1715290255253,-505.35,0.00041095,30]
[326733512,1715290255263,-151.0,0.00041095,14]
[326733513,1715290255272,-1925.23,0.00041095,30]
[326733514,1715290255282,-741.88,0.00041095,30]
[326733515,1715290255291,-500.0,0.00041095,30]
[326733516,1715290255301,-500.0,0.00041095,30]
[326733517,1715290255311,-500.0,0.00041095,30]
[326733518,1715290255320,-500.0,0.00041095,30]
[326733519,1715290255330,-505.91386082,0.00041095,30]
[326733520,1715290255339,-500.0,0.00041095,30]
[326733521,1715290255349,-500.0,0.00041095,30]
[326733522,1715290255359,-500.0,0.00041095,30]
[326733523,1715290255368,-151.0,0.00041095,14]
[326733524,1715290255378,-500.0,0.00041095,30]
[326733525,1715290255387,-553.86,0.00041095,30]
[326733526,1715290255396,-501.42753912,0.00041095,30]
[326733527,1715290255406,-500.0,0.00041095,30]
[326733528,1715290255415,-598.59,0.00041095,30]
[326733529,1715290255424,-500.0,0.00041095,30]
[326733530,1715290255434,-500.0,0.00041095,30]
[326733531,1715290255443,-1589.8,0.00041095,30]
[326733532,1715290255453,-500.0,0.00041095,30]
[326733533,1715290255462,-500.0,0.00041095,30]
[326733534,1715290255471,-500.0,0.00041095,30]
[326733535,1715290255481,-500.0,0.00041095,30]
[326733536,1715290255490,-974.29,0.00041095,30]
[326733537,1715290255500,-1678.24,0.00041095,30]
[326733538,1715290255509,-500.0,0.00041095,30]
[326733539,1715290255519,-500.0,0.00041095,30]
[326733540,1715290255528,-500.0,0.00041095,30]
[326733541,1715290255538,-500.0,0.00041095,30]
[326733542,1715290255547,-1688.22,0.00041095,30]
[326733543,1715290255557,-585.26,0.00041095,30]
[326733544,1715290255567,-521.56273162,0.00041095,30]
[326733545,1715290255576,-523.31348965,0.00041095,30]
[326733546,1715290255586,-551.14410088,0.00041095,30]
[326733547,1715290255596,-500.0,0.00041095,30]
[326733548,1715290255605,-500.0,0.00041095,30]
[326733549,1715290255615,-653.37,0.00041095,30]
[326733550,1715290255625,-500.0,0.00041095,30]
[326733551,1715290255634,-500.0,0.00041095,30]
[326733552,1715290255644,-1513.03,0.00041095,30]
[326733553,1715290255654,-500.0,0.00041095,30]
[326733554,1715290255663,-2833.18,0.00041095,30]
[326733555,1715290255674,-500.0,0.00041095,30]
[326733556,1715290255684,-500.99997971,0.00041095,30]
[326733557,1715290255694,-500.0,0.00041095,30]
[326733558,1715290255704,-998.08,0.00041095,30]
[326733559,1715290255713,-500.0,0.00041095,7]
[326733560,1715290255723,-379.75221695,0.00041095,30]
[326733561,1715290255734,-500.0,0.00041095,30]
[326733562,1715290255743,-1542.27,0.00041095,30]
[326733563,1715290255752,-153.458267,0.00041095,14]
[326733564,1715290255762,-500.0,0.00041095,30]
[326733565,1715290255772,-500.0,0.00041095,30]
[326733566,1715290255782,-517.58282365,0.00041095,30]
[326733567,1715290255791,-500.0,0.00041095,30]
[326733568,1715290255802,-1491.58,0.00041095,30]
[326733569,1715290255811,-500.0,0.00041095,30]
[326733570,1715290255821,-509.86314975,0.00041095,30]
[326733571,1715290255832,-913.79,0.00041095,30]
[326733572,1715290255846,-500.0,0.00041095,30]
[326733573,1715290255856,-1372.05,0.00041095,30]
[326733574,1715290255866,-784.75,0.00041095,30]
[326733575,1715290255876,-780.84,0.00041095,30]
[326733576,1715290255887,-500.0,0.00041095,30]
[326733577,1715290255897,-500.0,0.00041095,30]
[326733578,1715290255906,-500.0,0.00041095,30]
[326733579,1715290255919,-658.17,0.00041095,30]
[326733580,1715290255929,-500.0,0.00041095,30]
[326733581,1715290255939,-500.0,0.00041095,30]
[326733582,1715290255948,-500.0,0.00041095,30]
[326733583,1715290255957,-500.0,0.00041095,30]
[326733584,1715290255968,-500.0,0.00041095,30]
[326733585,1715290255977,-500.0,0.00041095,30]
[326733586,1715290255988,-500.0,0.00041095,30]
[326733587,1715290255998,-440.36945333,0.00041095,30]
[326733588,1715290256009,-500.0,0.00041095,30]
[326733589,1715290256018,-500.0,0.00041095,30]
[326733590,1715290256028,-500.0,0.00041095,30]
[326733591,1715290256038,-226.94491937,0.00041095,30]
[326733592,1715290256048,-561.0,0.00041095,30]
[326733593,1715290256058,-500.0,0.00041095,30]
[326733594,1715290256068,-500.0,0.00041095,30]
[326733595,1715290256078,-151.0,0.00041095,14]
[326733596,1715290256087,-151.0,0.00041095,14]
[326733597,1715290256097,-1139.65,0.00041095,30]
[326733598,1715290256107,-2928.31,0.00041095,30]
[326733599,1715290256116,-500.0,0.00041095,30]
[326733600,1715290256126,-500.0,0.00041095,30]
[326733601,1715290256135,-500.0,0.00041095,30]
[326733602,1715290256145,-1123.05,0.00041095,30]
[326733603,1715290256155,-151.0,0.00041095,14]
[326733604,1715290256164,-151.0,0.00041095,14]
[326733605,1715290256173,-500.0,0.00041095,30]
[326733606,1715290256182,-500.0,0.00041095,30]
[326733607,1715290256192,-500.0,0.00041095,30]
[326733608,1715290256201,-500.0,0.00041095,30]
[326733609,1715290256210,-500.0,0.00041095,30]
[326733610,1715290256220,-500.0,0.00041095,30]
[326733611,1715290256229,-3820.26,0.00041095,30]
[326733612,1715290256239,-500.0,0.00041095,30]
[326733613,1715290256249,-1520.63,0.00041095,30]
[326733614,1715290256258,-2100.36,0.00041095,30]
[326733615,1715290256268,-500.0,0.00041095,30]
[326733616,1715290256276,-500.0,0.00041095,30]
[326733617,1715290256286,-995.14,0.00041095,30]
[326733618,1715290256294,-500.0,0.00041095,30]
[326733619,1715290256303,-500.0,0.00041095,30]
[326733620,1715290256312,-500.0,0.00041095,30]
[326733621,1715290256321,-533.32768351,0.00041095,30]
[326733622,1715290256330,-151.0,0.00041095,14]
[326733623,1715290256339,-978.77,0.00041095,30]
[326733624,1715290256348,-491.66013858,0.00041095,30]
[326733625,1715290256358,-559.91,0.00041095,30]
[326733626,1715290256368,-156.433079,0.00041095,14]
[326733627,1715290256377,-1348.6,0.00041095,30]
[326733628,1715290256386,-2000.0,0.00041095,30]
[326733629,1715290256396,-500.0,0.00041095,30]
[326733630,1715290256405,-500.0,0.00041095,30]
[326733631,1715290256414,-500.0,0.00041095,30]
[326733632,1715290256424,-500.0,0.00041095,30]
[326733633,1715290256433,-1000.0,0.00041095,30]
[326733634,1715290256442,-500.0,0.00041095,30]
[326733635,1715290256451,-500.0,0.00041095,30]
[326733636,1715290256460,-500.0,0.00041095,30]
[326733637,1715290256469,-1543.05,0.00041095,30]
[326733638,1715290256479,-151.0,0.00041095,14]
[326733639,1715290256489,-151.0,0.00041095,14]
[326733640,1715290256499,-500.0,0.00041095,30]
[326733641,1715290256508,-500.0,0.00041095,30]
[326733642,1715290256517,-500.0,0.00041095,30]
[326733643,1715290256527,-500.0,0.00041095,30]
[326733644,1715290256536,-2295.38,0.00041095,30]
[326733645,1715290256546,-501.04107864,0.00041095,30]
[326733646,1715290256555,-500.0,0.00041095,30]
[326733647,1715290256564,-529.21,0.00041095,30]
[326733648,1715290256574,-6589.17,0.00041095,30]
[326733649,1715290256583,-151.0,0.00041095,14]
[326733650,1715290256592,-500.0,0.00041095,30]
[326733651,1715290256601,-500.0,0.00041095,30]
[326733652,1715290256610,-500.0,0.00041095,30]
[326733653,1715290256620,-151.0,0.00041095,14]
[326733654,1715290256629,-2764.55,0.00041095,30]
[326733655,1715290256639,-501.5873686,0.00041095,30]
[326733656,1715290256648,-1353.58,0.00041095,30]
[326733657,1715290256657,-500.0,0.00041095,30]
[326733658,1715290256666,-2223.51,0.00041095,30]
[326733659,1715290256675,-500.0,0.00041095,30]
[326733660,1715290256685,-500.0,0.00041095,30]
[326733661,1715290256694,-500.0,0.00041095,30]
[326733662,1715290256703,-450.23061603,0.00041095,30]
[326733663,1715290256712,-500.0,0.00041095,30]
[326733664,1715290256721,-151.0,0.00041095,14]
[326733665,1715290256730,-500.0,0.00041095,30]
[326733666,1715290256740,-151.0,0.00041095,14]
[326733667,1715290256749,-500.0,0.00041095,30]
[326733668,1715290256759,-1389.49,0.00041095,30]
[326733669,1715290256769,-500.0,0.00041095,30]
[326733670,1715290256778,-500.0,0.00041095,30]
[326733671,1715290256788,-500.0,0.00041095,30]
[326733672,1715290256797,-500.0,0.00041095,30]
[326733673,1715290256807,-500.0,0.00041095,30]
[326733674,1715290256816,-1402.13,0.00041095,30]
[326733675,1715290256825,-500.0,0.00041095,30]
[326733676,1715290256838,-151.0,0.00041095,5]
[326733677,1715290256847,-500.0,0.00041095,30]
[326733678,1715290256857,-154.888762,0.00041095,5]
[326733679,1715290256866,-500.0,0.00041095,30]
[326733680,1715290256876,-3134.74,0.00041095,30]
[326733681,1715290256886,-500.0,0.00041095,30]
[326733682,1715290256896,-500.0,0.00041095,30]
[326733683,1715290256905,-500.0,0.00041095,30]
[326733684,1715290256915,-500.0,0.00041095,30]
[326733685,1715290256925,-500.0,0.00041095,30]
[326733686,1715290256935,-502.92059485,0.00041095,30]
[326733687,1715290256944,-500.0,0.00041095,30]
[326733688,1715290256953,-500.0,0.00041095,30]
[326733689,1715290256963,-500.0,0.00041095,30]
[326733690,1715290256972,-500.0,0.00041095,30]